[Event "Betsys MČR v online bleskovém šachu 2021"]
[Site "Chess.com"]
[Date "2021.04.17"]
[Round "1"]
[White "pudltomik"]
[Black "Filipdol"]
[Result "0-1"]
[WhiteElo "764"]
[BlackElo "1864"]
[TimeControl "180+1"]
[EndTime "9:05:56 PDT"]
[Termination "Uživatel Filipdol zvítězil matem"]

1. e4 {[%clk 0:03:00.3]} 1... c5 {[%clk 0:02:59.1]} 2. c4 {[%clk 0:02:57.8]}
2... Nc6 {[%clk 0:02:58.3]} 3. f3 {[%clk 0:02:45.6]} 3... a6 {[%clk 0:02:56.7]}
4. b3 {[%clk 0:02:43.5]} 4... d6 {[%clk 0:02:54.8]} 5. f4 {[%clk 0:02:39.4]}
5... Nf6 {[%clk 0:02:50.7]} 6. Qe2 {[%clk 0:02:36.1]} 6... Nd4 {[%clk
0:02:49.4]} 7. Qd3 {[%clk 0:02:31.5]} 7... e5 {[%clk 0:02:40.7]} 8. Nc3 {[%clk
0:02:25.9]} 8... Be7 {[%clk 0:02:31.3]} 9. Nf3 {[%clk 0:02:23.9]} 9... Nxf3+
{[%clk 0:02:29.2]} 10. gxf3 {[%clk 0:02:23.2]} 10... exf4 {[%clk 0:02:24.5]} 11.
Ba3 {[%clk 0:02:18.9]} 11... Nd7 {[%clk 0:02:23.9]} 12. O-O-O {[%clk 0:02:18.2]}
12... Ne5 {[%clk 0:02:23.4]} 13. Qc2 {[%clk 0:02:12.4]} 13... Nxf3 {[%clk
0:02:17.1]} 14. Bg2 {[%clk 0:02:09.5]} 14... Nd4 {[%clk 0:02:16.3]} 15. Qb1
{[%clk 0:02:05.3]} 15... Be6 {[%clk 0:02:14.9]} 16. h3 {[%clk 0:01:57.2]} 16...
O-O {[%clk 0:02:10.2]} 17. Rdf1 {[%clk 0:01:46.8]} 17... b5 {[%clk 0:02:00.3]}
18. Rxf4 {[%clk 0:01:43.4]} 18... b4 {[%clk 0:01:55.4]} 19. Bxb4 {[%clk
0:01:17.2]} 19... cxb4 {[%clk 0:01:53.2]} 20. Nd1 {[%clk 0:01:12.7]} 20... Ne2+
{[%clk 0:01:51.5]} 21. Kb2 {[%clk 0:01:07]} 21... Nxf4 {[%clk 0:01:51]} 22. e5
{[%clk 0:00:53.2]} 22... dxe5 {[%clk 0:01:50.6]} 23. Bxa8 {[%clk 0:00:52.5]}
23... Qxa8 {[%clk 0:01:50.8]} 24. Rg1 {[%clk 0:00:50.5]} 24... Bf6 {[%clk
0:01:46.6]} 25. Kc1 {[%clk 0:00:44.2]} 25... Ne2+ {[%clk 0:01:45.1]} 26. Kc2
{[%clk 0:00:39.3]} 26... Nxg1 {[%clk 0:01:46]} 27. Ne3 {[%clk 0:00:37.4]} 27...
Qe4+ {[%clk 0:01:44]} 28. d3 {[%clk 0:00:35.8]} 28... Qxe3 {[%clk 0:01:42.9]}
29. a3 {[%clk 0:00:25.1]} 29... Qe2+ {[%clk 0:01:40.3]} 30. Kc1 {[%clk
0:00:24.2]} 30... Bg5# {[%clk 0:01:40]} 0-1

[Event "Betsys MČR v online bleskovém šachu 2021"]
[Site "Chess.com"]
[Date "2021.04.17"]
[Round "1"]
[White "JustFilip05"]
[Black "Vojta0007"]
[Result "1-0"]
[WhiteElo "2142"]
[BlackElo "1499"]
[TimeControl "180+1"]
[EndTime "9:05:57 PDT"]
[Termination "Uživatel JustFilip05 zvítězil matem"]

1. d4 {[%clk 0:02:53.6]} 1... d5 {[%clk 0:02:58.9]} 2. Bf4 {[%clk 0:02:28.7]}
2... c6 {[%clk 0:02:57]} 3. e3 {[%clk 0:02:28.8]} 3... Nf6 {[%clk 0:02:56.1]} 4.
Nf3 {[%clk 0:02:28.9]} 4... e6 {[%clk 0:02:53.4]} 5. Bd3 {[%clk 0:02:29]} 5...
Be7 {[%clk 0:02:51.2]} 6. c3 {[%clk 0:02:29.1]} 6... Nbd7 {[%clk 0:02:49.4]} 7.
Nbd2 {[%clk 0:02:29.5]} 7... O-O {[%clk 0:02:48.4]} 8. Ne5 {[%clk 0:02:23.2]}
8... c5 {[%clk 0:02:37.8]} 9. Ndf3 {[%clk 0:02:17.8]} 9... cxd4 {[%clk
0:02:34.4]} 10. exd4 {[%clk 0:02:17.2]} 10... Re8 {[%clk 0:02:23.2]} 11. O-O
{[%clk 0:02:16]} 11... Qb6 {[%clk 0:02:12.8]} 12. Qc2 {[%clk 0:01:57.7]} 12...
h6 {[%clk 0:02:05.5]} 13. Rae1 {[%clk 0:01:51.2]} 13... Nh5 {[%clk 0:01:59.4]}
14. Bc1 {[%clk 0:01:48.1]} 14... Nhf6 {[%clk 0:01:57.8]} 15. Re2 {[%clk
0:00:55.4]} 15... Qc7 {[%clk 0:01:48]} 16. Rfe1 {[%clk 0:00:52.6]} 16... b6
{[%clk 0:01:46.8]} 17. Nxf7 {[%clk 0:00:48.7]} 17... Kxf7 {[%clk 0:01:42.5]} 18.
Bg6+ {[%clk 0:00:48.7]} 18... Kf8 {[%clk 0:01:41.8]} 19. Bxe8 {[%clk 0:00:49.2]}
19... Nxe8 {[%clk 0:01:37.7]} 20. Rxe6 {[%clk 0:00:49.1]} 20... Ndf6 {[%clk
0:01:33.7]} 21. Rxe7 {[%clk 0:00:45.3]} 21... Qc6 {[%clk 0:01:16.2]} 22. Qg6
{[%clk 0:00:42.7]} 22... Nd6 {[%clk 0:01:07.6]} 23. Qxg7# {[%clk 0:00:39]} 1-0

[Event "Betsys MČR v online bleskovém šachu 2021"]
[Site "Chess.com"]
[Date "2021.04.17"]
[Round "1"]
[White "chessbeer17"]
[Black "pavelchrz"]
[Result "1-0"]
[WhiteElo "2341"]
[BlackElo "1707"]
[TimeControl "180+1"]
[EndTime "9:05:59 PDT"]
[Termination "Uživatel chessbeer17 zvítězil po vzdání soupeře"]

1. d4 {[%clk 0:03:00]} 1... d5 {[%clk 0:02:53.8]} 2. c4 {[%clk 0:02:59.9]} 2...
e6 {[%clk 0:02:53.4]} 3. a3 {[%clk 0:02:58]} 3... Nf6 {[%clk 0:02:51.1]} 4. Nc3
{[%clk 0:02:58]} 4... Be7 {[%clk 0:02:47.1]} 5. c5 {[%clk 0:02:56]} 5... a5
{[%clk 0:02:32.2]} 6. Bf4 {[%clk 0:02:53.6]} 6... Nh5 {[%clk 0:02:14.7]} 7. e3
{[%clk 0:02:49.8]} 7... Nxf4 {[%clk 0:02:13.7]} 8. exf4 {[%clk 0:02:50.7]} 8...
O-O {[%clk 0:02:06.9]} 9. Nf3 {[%clk 0:02:50.6]} 9... Bf6 {[%clk 0:02:04]} 10.
Bd3 {[%clk 0:02:48.5]} 10... b6 {[%clk 0:01:59]} 11. b4 {[%clk 0:02:46]} 11...
axb4 {[%clk 0:01:56.7]} 12. axb4 {[%clk 0:02:46.9]} 12... bxc5 {[%clk
0:01:36.5]} 13. Rxa8 {[%clk 0:02:34.7]} 13... cxd4 {[%clk 0:01:36.5]} 14. Rxb8
{[%clk 0:02:29.4]} 14... dxc3 {[%clk 0:01:34.6]} 15. O-O {[%clk 0:02:28.8]}
15... Qd6 {[%clk 0:01:30]} 16. Qc2 {[%clk 0:02:19.5]} 16... c5 {[%clk
0:01:26.2]} 17. Rxc8 {[%clk 0:01:57.8]} 17... Rxc8 {[%clk 0:01:19.9]} 18. bxc5
{[%clk 0:01:57.9]} 18... Qxc5 {[%clk 0:01:14.9]} 19. Bxh7+ {[%clk 0:01:56.3]}
19... Kh8 {[%clk 0:01:13.8]} 20. Bd3 {[%clk 0:01:56.9]} 20... Rb8 {[%clk
0:01:04.1]} 21. Rb1 {[%clk 0:01:54]} 21... Ra8 {[%clk 0:00:42.7]} 22. g3 {[%clk
0:01:48.1]} 22... Qc6 {[%clk 0:00:27.8]} 23. Kg2 {[%clk 0:01:42.6]} 23... Ra4
{[%clk 0:00:10.3]} 24. Rb8+ {[%clk 0:01:37]} 1-0

[Event "Betsys MČR v online bleskovém šachu 2021"]
[Site "Chess.com"]
[Date "2021.04.17"]
[Round "1"]
[White "TerezaRodshtein"]
[Black "kominekmart"]
[Result "1-0"]
[WhiteElo "2201"]
[BlackElo "1578"]
[TimeControl "180+1"]
[EndTime "9:05:59 PDT"]
[Termination "Uživatel TerezaRodshtein zvítězil matem"]

1. e4 {[%clk 0:02:59.5]} 1... d6 {[%clk 0:02:59.5]} 2. d4 {[%clk 0:02:58.8]}
2... g6 {[%clk 0:02:59.2]} 3. Nc3 {[%clk 0:02:58.2]} 3... Bg7 {[%clk 0:02:58.4]}
4. Be3 {[%clk 0:02:58.2]} 4... Nf6 {[%clk 0:02:57.9]} 5. h3 {[%clk 0:02:55.6]}
5... O-O {[%clk 0:02:57.2]} 6. Qd2 {[%clk 0:02:53.7]} 6... e5 {[%clk 0:02:55.7]}
7. O-O-O {[%clk 0:02:46.6]} 7... exd4 {[%clk 0:02:53.8]} 8. Bxd4 {[%clk
0:02:46.4]} 8... Nbd7 {[%clk 0:02:52.3]} 9. g4 {[%clk 0:02:32.4]} 9... a6 {[%clk
0:02:47.9]} 10. g5 {[%clk 0:02:30.7]} 10... Nh5 {[%clk 0:02:42.6]} 11. Bxg7
{[%clk 0:02:29.2]} 11... Kxg7 {[%clk 0:02:42.3]} 12. Be2 {[%clk 0:02:15.2]}
12... Ne5 {[%clk 0:02:20.7]} 13. f4 {[%clk 0:02:00.8]} 13... Nc6 {[%clk
0:02:08.9]} 14. Bxh5 {[%clk 0:01:58.5]} 14... gxh5 {[%clk 0:02:08.3]} 15. Nge2
{[%clk 0:01:57]} 15... b5 {[%clk 0:02:00.4]} 16. Ng3 {[%clk 0:01:56.1]} 16... b4
{[%clk 0:01:39.2]} 17. Nd5 {[%clk 0:01:51.2]} 17... a5 {[%clk 0:01:16.2]} 18.
Nxh5+ {[%clk 0:01:49.9]} 18... Kg6 {[%clk 0:01:13]} 19. Ndf6 {[%clk 0:01:46]}
19... a4 {[%clk 0:01:01.6]} 20. f5+ {[%clk 0:01:45.6]} 20... Bxf5 {[%clk
0:00:52.7]} 21. exf5+ {[%clk 0:01:46.5]} 21... Kxf5 {[%clk 0:00:52.1]} 22. Rdf1+
{[%clk 0:01:22.5]} 22... Ke6 {[%clk 0:00:39.9]} 23. Qd5+ {[%clk 0:01:18.2]}
23... Ke7 {[%clk 0:00:37.9]} 24. Qxc6 {[%clk 0:01:18]} 24... b3 {[%clk
0:00:33.9]} 25. Re1# {[%clk 0:01:17.4]} 1-0

[Event "Betsys MČR v online bleskovém šachu 2021"]
[Site "Chess.com"]
[Date "2021.04.17"]
[Round "1"]
[White "Sorcercream"]
[Black "David_Mic"]
[Result "0-1"]
[WhiteElo "1193"]
[BlackElo "1994"]
[TimeControl "180+1"]
[EndTime "9:05:59 PDT"]
[Termination "Uživatel David_Mic zvítězil po vzdání soupeře"]

1. e4 {[%clk 0:02:59.9]} 1... c5 {[%clk 0:02:59.3]} 2. Nf3 {[%clk 0:02:59.8]}
2... Nc6 {[%clk 0:02:59.3]} 3. c3 {[%clk 0:02:59.8]} 3... Nf6 {[%clk 0:02:58.1]}
4. d4 {[%clk 0:02:41.1]} 4... cxd4 {[%clk 0:02:54.2]} 5. cxd4 {[%clk 0:02:39.6]}
5... Nxe4 {[%clk 0:02:52.7]} 6. Bd3 {[%clk 0:02:26.1]} 6... Nf6 {[%clk
0:02:48.3]} 7. O-O {[%clk 0:02:25.5]} 7... g6 {[%clk 0:02:44.6]} 8. Re1 {[%clk
0:02:19.2]} 8... Bg7 {[%clk 0:02:44.4]} 9. Nc3 {[%clk 0:02:16.7]} 9... d5 {[%clk
0:02:41.3]} 10. Bg5 {[%clk 0:02:10.9]} 10... O-O {[%clk 0:02:40.6]} 11. Bc2
{[%clk 0:02:06.2]} 11... Bg4 {[%clk 0:02:39.1]} 12. h3 {[%clk 0:02:05]} 12...
Bxf3 {[%clk 0:02:38.5]} 13. gxf3 {[%clk 0:01:58.1]} 13... Qd7 {[%clk 0:02:34.3]}
14. Kh2 {[%clk 0:01:52.7]} 14... Rac8 {[%clk 0:02:32.6]} 15. Qd2 {[%clk
0:01:39.2]} 15... e6 {[%clk 0:02:08.1]} 16. Qf4 {[%clk 0:01:27.4]} 16... Nh5
{[%clk 0:01:57.7]} 17. Qg4 {[%clk 0:00:58.2]} 17... Nxd4 {[%clk 0:01:54.1]} 18.
Ba4 {[%clk 0:00:45.6]} 18... b5 {[%clk 0:01:52.6]} 19. Bb3 {[%clk 0:00:42]}
19... h6 {[%clk 0:01:22.4]} 20. Be3 {[%clk 0:00:33]} 20... Nxb3 {[%clk
0:01:20.5]} 21. axb3 {[%clk 0:00:32.1]} 21... d4 {[%clk 0:01:18.8]} 0-1

[Event "Betsys MČR v online bleskovém šachu 2021"]
[Site "Chess.com"]
[Date "2021.04.17"]
[Round "1"]
[White "VeceraP1973"]
[Black "Berzeger"]
[Result "1-0"]
[WhiteElo "1914"]
[BlackElo "1023"]
[TimeControl "180+1"]
[EndTime "9:05:59 PDT"]
[Termination "Uživatel VeceraP1973 zvítězil po vzdání soupeře"]

1. e4 {[%clk 0:02:59.7]} 1... e5 {[%clk 0:02:59.4]} 2. d3 {[%clk 0:02:58.8]}
2... Nc6 {[%clk 0:02:44.6]} 3. Nf3 {[%clk 0:02:57.8]} 3... Nf6 {[%clk
0:02:41.2]} 4. Nc3 {[%clk 0:02:55.8]} 4... d5 {[%clk 0:02:36.7]} 5. exd5 {[%clk
0:02:54.4]} 5... Nxd5 {[%clk 0:02:36.6]} 6. Bd2 {[%clk 0:02:53.9]} 6... Nxc3
{[%clk 0:02:34.4]} 7. Bxc3 {[%clk 0:02:53.2]} 7... Bg4 {[%clk 0:02:34.7]} 8. Be2
{[%clk 0:02:52.4]} 8... Bxf3 {[%clk 0:02:26]} 9. Bxf3 {[%clk 0:02:51.7]} 9...
Bc5 {[%clk 0:02:26.7]} 10. O-O {[%clk 0:02:46.1]} 10... Bd4 {[%clk 0:02:13.4]}
11. Qe2 {[%clk 0:02:38.1]} 11... Bxc3 {[%clk 0:02:05.8]} 12. bxc3 {[%clk
0:02:33.1]} 12... Qf6 {[%clk 0:02:03.2]} 13. Rfe1 {[%clk 0:02:28.9]} 13... O-O
{[%clk 0:01:55.8]} 14. Bxc6 {[%clk 0:02:27.9]} 14... bxc6 {[%clk 0:01:55.6]} 15.
Qxe5 {[%clk 0:02:26.8]} 15... Qxe5 {[%clk 0:01:54.7]} 16. Rxe5 {[%clk
0:02:26.1]} 16... Rfe8 {[%clk 0:01:52.8]} 17. Rxe8+ {[%clk 0:02:25.2]} 17...
Rxe8 {[%clk 0:01:52.3]} 18. Kf1 {[%clk 0:02:25.7]} 18... f6 {[%clk 0:01:49]} 19.
Rb1 {[%clk 0:02:24.7]} 19... a5 {[%clk 0:01:38.5]} 20. Rb7 {[%clk 0:02:23.2]}
20... Re7 {[%clk 0:01:38.6]} 21. Ra7 {[%clk 0:02:22.3]} 21... Kf7 {[%clk
0:01:36.8]} 22. Rxa5 {[%clk 0:02:21.4]} 22... Ke6 {[%clk 0:01:36]} 23. Rc5
{[%clk 0:02:19.8]} 23... Kd6 {[%clk 0:01:35.9]} 24. d4 {[%clk 0:02:19.4]} 24...
g5 {[%clk 0:01:32.9]} 25. a4 {[%clk 0:02:18.4]} 25... Re8 {[%clk 0:01:31]} 26.
a5 {[%clk 0:02:16.2]} 26... Ra8 {[%clk 0:01:31.5]} 27. f3 {[%clk 0:02:13.8]}
27... h6 {[%clk 0:01:31.5]} 28. g4 {[%clk 0:02:11.5]} 28... Rb8 {[%clk
0:01:26.9]} 29. Ke2 {[%clk 0:02:09.2]} 29... Rb2 {[%clk 0:01:17.7]} 30. Kd3
{[%clk 0:02:02.1]} 30... Rb8 {[%clk 0:01:16.4]} 31. a6 {[%clk 0:02:01]} 31...
Ra8 {[%clk 0:01:16.1]} 32. Ra5 {[%clk 0:02:00.2]} 32... Kd7 {[%clk 0:01:16.1]}
33. Ke4 {[%clk 0:01:58.4]} 33... Kc8 {[%clk 0:01:16.7]} 34. Kf5 {[%clk
0:01:57.5]} 34... Kb8 {[%clk 0:01:14]} 35. Kxf6 {[%clk 0:01:55.9]} 35... Ka7
{[%clk 0:01:14.7]} 36. Kg7 {[%clk 0:01:51.4]} 36... Kb6 {[%clk 0:01:14.5]} 37.
Ra3 {[%clk 0:01:41.5]} 37... Rxa6 {[%clk 0:01:07.8]} 38. Rxa6+ {[%clk
0:01:39.6]} 38... Kxa6 {[%clk 0:01:08.7]} 39. Kxh6 {[%clk 0:01:39.3]} 39... Kb5
{[%clk 0:01:09.6]} 40. Kxg5 {[%clk 0:01:39.4]} 40... Kc4 {[%clk 0:01:10.4]} 41.
h4 {[%clk 0:01:38.4]} 41... Kxc3 {[%clk 0:01:10.9]} 42. h5 {[%clk 0:01:38.3]}
42... Kxd4 {[%clk 0:01:09.5]} 43. h6 {[%clk 0:01:38.1]} 43... c5 {[%clk
0:01:10.4]} 44. h7 {[%clk 0:01:37.9]} 44... c4 {[%clk 0:01:11.3]} 45. h8=Q+
{[%clk 0:01:36.7]} 45... Ke3 {[%clk 0:01:07.5]} 46. Qc3+ {[%clk 0:01:34.9]} 1-0

[Event "Betsys MČR v online bleskovém šachu 2021"]
[Site "Chess.com"]
[Date "2021.04.17"]
[Round "1"]
[White "MilosJi"]
[Black "DONSANMIGUEL"]
[Result "1-0"]
[WhiteElo "2609"]
[BlackElo "1800"]
[TimeControl "180+1"]
[EndTime "9:06:02 PDT"]
[Termination "Uživatel MilosJi zvítězil na čas"]

1. Nf3 {[%clk 0:03:00.9]} 1... a6 {[%clk 0:02:57.6]} 2. d4 {[%clk 0:02:59.7]}
2... b5 {[%clk 0:02:57.5]} 3. g3 {[%clk 0:02:59.9]} 3... Bb7 {[%clk 0:02:57.6]}
4. Bg2 {[%clk 0:02:59.8]} 4... e6 {[%clk 0:02:58.1]} 5. O-O {[%clk 0:02:59.9]}
5... Ne7 {[%clk 0:02:54.7]} 6. Nbd2 {[%clk 0:02:59.9]} 6... Ng6 {[%clk
0:02:54.4]} 7. e4 {[%clk 0:02:59.7]} 7... Be7 {[%clk 0:02:53.1]} 8. Qe2 {[%clk
0:02:59.3]} 8... c5 {[%clk 0:02:47.4]} 9. c3 {[%clk 0:02:55.2]} 9... cxd4 {[%clk
0:02:36.5]} 10. cxd4 {[%clk 0:02:53.8]} 10... Nc6 {[%clk 0:02:36.5]} 11. a3
{[%clk 0:02:48.6]} 11... h5 {[%clk 0:02:33.9]} 12. h4 {[%clk 0:02:47.5]} 12...
Bxh4 {[%clk 0:02:12.8]} 13. gxh4 {[%clk 0:02:42.7]} 13... Nxh4 {[%clk
0:02:11.2]} 14. d5 {[%clk 0:02:42.3]} 14... Nd4 {[%clk 0:01:46.6]} 15. Nxd4
{[%clk 0:02:38.8]} 15... Qg5 {[%clk 0:01:44.6]} 16. f4 {[%clk 0:02:36.4]} 16...
Qf6 {[%clk 0:00:53.8]} 17. N2f3 {[%clk 0:02:29.4]} 17... Ng6 {[%clk 0:00:48.3]}
18. e5 {[%clk 0:02:23.8]} 18... Qe7 {[%clk 0:00:48]} 19. d6 {[%clk 0:02:23.6]}
19... Qd8 {[%clk 0:00:47.2]} 20. Ng5 {[%clk 0:02:23.3]} 20... Bxg2 {[%clk
0:00:45.3]} 21. Qxg2 {[%clk 0:02:23.4]} 21... h4 {[%clk 0:00:41.6]} 22. f5
{[%clk 0:02:22.5]} 22... Nxe5 {[%clk 0:00:32.8]} 23. fxe6 {[%clk 0:02:18.6]}
23... dxe6 {[%clk 0:00:28.9]} 24. Ndxe6 {[%clk 0:02:18]} 24... Qb6+ {[%clk
0:00:26.2]} 25. Qf2 {[%clk 0:02:13.3]} 25... Qxd6 {[%clk 0:00:23.2]} 26. Nxg7+
{[%clk 0:02:08.8]} 26... Kf8 {[%clk 0:00:16]} 27. Nxf7 {[%clk 0:02:08.1]} 27...
Qg6+ {[%clk 0:00:03.6]} 28. Kh1 {[%clk 0:02:04.7]} 28... Nxf7 {[%clk 0:00:02.1]}
29. Nf5 {[%clk 0:02:00.9]} 29... Kg8 {[%clk 0:00:01.3]} 30. Rg1 {[%clk
0:02:00.1]} 30... Ng5 {[%clk 0:00:01.4]} 31. Rxg5 {[%clk 0:01:59.2]} 1-0

[Event "Betsys MČR v online bleskovém šachu 2021"]
[Site "Chess.com"]
[Date "2021.04.17"]
[Round "1"]
[White "adasmrazek"]
[Black "Jakuboss22005"]
[Result "0-1"]
[WhiteElo "1327"]
[BlackElo "2059"]
[TimeControl "180+1"]
[EndTime "9:06:02 PDT"]
[Termination "Uživatel Jakuboss22005 zvítězil po vzdání soupeře"]

1. d4 {[%clk 0:02:58.4]} 1... Nf6 {[%clk 0:02:59.6]} 2. c4 {[%clk 0:02:58.4]}
2... e5 {[%clk 0:02:57.8]} 3. Nf3 {[%clk 0:02:43.9]} 3... exd4 {[%clk
0:02:56.4]} 4. Nxd4 {[%clk 0:02:43.3]} 4... Bc5 {[%clk 0:02:55.1]} 5. Nc3 {[%clk
0:02:39.4]} 5... O-O {[%clk 0:02:52.3]} 6. e4 {[%clk 0:02:36.2]} 6... Re8 {[%clk
0:02:51.7]} 7. Bd3 {[%clk 0:02:33.6]} 7... Bxd4 {[%clk 0:02:50.5]} 8. Bg5 {[%clk
0:02:18.2]} 8... c6 {[%clk 0:02:04.7]} 9. O-O {[%clk 0:02:12.1]} 9... d6 {[%clk
0:02:03.6]} 10. Rc1 {[%clk 0:01:48.1]} 10... h6 {[%clk 0:02:02.3]} 11. Bh4
{[%clk 0:01:44.9]} 11... Be6 {[%clk 0:01:56.4]} 12. Qb3 {[%clk 0:01:33.2]} 12...
Qb6 {[%clk 0:01:52]} 13. Qxb6 {[%clk 0:00:25.8]} 13... axb6 {[%clk 0:01:50.3]}
14. Bb1 {[%clk 0:00:24]} 14... Bxc4 {[%clk 0:01:39.3]} 15. Rfd1 {[%clk
0:00:15.9]} 15... Bxc3 {[%clk 0:01:21.3]} 16. Rxc3 {[%clk 0:00:14.2]} 16... Bxa2
{[%clk 0:01:18.3]} 17. Bxa2 {[%clk 0:00:15.1]} 17... Rxa2 {[%clk 0:01:18.1]} 18.
Rxd6 {[%clk 0:00:14.5]} 18... Ra1+ {[%clk 0:01:17.6]} 0-1

[Event "Betsys MČR v online bleskovém šachu 2021"]
[Site "Chess.com"]
[Date "2021.04.17"]
[Round "1"]
[White "pohoda1966"]
[Black "KdybyNecoTakNic"]
[Result "0-1"]
[WhiteElo "1718"]
[BlackElo "2349"]
[TimeControl "180+1"]
[EndTime "9:06:04 PDT"]
[Termination "Uživatel KdybyNecoTakNic zvítězil po vzdání soupeře"]

1. e4 {[%clk 0:03:00.9]} 1... e6 {[%clk 0:02:59.5]} 2. d4 {[%clk 0:03:00.1]}
2... d5 {[%clk 0:02:58.5]} 3. e5 {[%clk 0:03:00.2]} 3... c5 {[%clk 0:02:58.2]}
4. c3 {[%clk 0:03:00.4]} 4... Nc6 {[%clk 0:02:57.9]} 5. Nf3 {[%clk 0:03:00.4]}
5... Bd7 {[%clk 0:02:56.6]} 6. Be2 {[%clk 0:03:00.5]} 6... Nge7 {[%clk
0:02:51.3]} 7. Na3 {[%clk 0:03:00.2]} 7... cxd4 {[%clk 0:02:47.6]} 8. cxd4
{[%clk 0:02:58]} 8... Nf5 {[%clk 0:02:46.8]} 9. Nc2 {[%clk 0:02:57.8]} 9... Be7
{[%clk 0:02:43.3]} 10. O-O {[%clk 0:02:57]} 10... O-O {[%clk 0:02:41.5]} 11. g3
{[%clk 0:02:55.8]} 11... Rc8 {[%clk 0:02:38.7]} 12. Ne3 {[%clk 0:02:52.4]} 12...
Nh6 {[%clk 0:02:09.4]} 13. a3 {[%clk 0:02:47.6]} 13... Qb6 {[%clk 0:02:08.7]}
14. b4 {[%clk 0:02:44.4]} 14... a6 {[%clk 0:02:05.1]} 15. Bd2 {[%clk 0:02:41.3]}
15... Nxd4 {[%clk 0:01:53.3]} 16. Nxd4 {[%clk 0:02:40.9]} 16... Qxd4 {[%clk
0:01:52.4]} 17. Nc2 {[%clk 0:02:38.6]} 17... Qxe5 {[%clk 0:01:44.9]} 18. Bxh6
{[%clk 0:02:38]} 18... gxh6 {[%clk 0:01:44.5]} 19. Qd2 {[%clk 0:02:28]} 19...
Qc3 {[%clk 0:01:32.3]} 20. Qxc3 {[%clk 0:02:22.5]} 20... Rxc3 {[%clk 0:01:31.5]}
21. Nd4 {[%clk 0:02:18.3]} 21... Bf6 {[%clk 0:01:27.6]} 22. Rfd1 {[%clk
0:02:09.3]} 22... Ba4 {[%clk 0:01:27.7]} 23. Rd2 {[%clk 0:02:02.7]} 23... Rfc8
{[%clk 0:01:26.2]} 24. Raa2 {[%clk 0:01:57.6]} 24... Kf8 {[%clk 0:01:21]} 25.
Kg2 {[%clk 0:01:57.4]} 25... Ke7 {[%clk 0:01:20.9]} 26. h4 {[%clk 0:01:53]}
26... Kd6 {[%clk 0:01:19.8]} 27. Nf3 {[%clk 0:01:51.8]} 27... Bb3 {[%clk
0:01:13.5]} 28. Rab2 {[%clk 0:01:50.3]} 28... Bc4 {[%clk 0:01:09.7]} 29. Bxc4
{[%clk 0:01:49.1]} 29... R8xc4 {[%clk 0:01:08.4]} 30. Rb1 {[%clk 0:01:45.6]}
30... Rxa3 {[%clk 0:01:06.1]} 31. b5 {[%clk 0:01:44.4]} 31... a5 {[%clk
0:01:05]} 32. Ne1 {[%clk 0:01:40.5]} 32... Rac3 {[%clk 0:00:58.8]} 33. Nd3
{[%clk 0:01:39.4]} 33... a4 {[%clk 0:00:57.5]} 34. Nb4 {[%clk 0:01:34.1]} 34...
a3 {[%clk 0:00:53.5]} 35. Na2 {[%clk 0:01:33.9]} 35... Rc2 {[%clk 0:00:53.4]}
36. Rxc2 {[%clk 0:01:31.6]} 36... Rxc2 {[%clk 0:00:53.5]} 37. Nb4 {[%clk
0:01:30.5]} 37... Rb2 {[%clk 0:00:47.5]} 0-1

[Event "Betsys MČR v online bleskovém šachu 2021"]
[Site "Chess.com"]
[Date "2021.04.17"]
[Round "1"]
[White "Tretrik"]
[Black "zaciname"]
[Result "1-0"]
[WhiteElo "1856"]
[BlackElo "709"]
[TimeControl "180+1"]
[EndTime "9:06:07 PDT"]
[Termination "Uživatel Tretrik zvítězil matem"]

1. e4 {[%clk 0:02:59.4]} 1... e5 {[%clk 0:02:59.2]} 2. Nf3 {[%clk 0:02:58.9]}
2... Nf6 {[%clk 0:02:59.6]} 3. Nxe5 {[%clk 0:02:58.1]} 3... Qe7 {[%clk
0:02:58.2]} 4. d4 {[%clk 0:02:57.3]} 4... d6 {[%clk 0:02:58.2]} 5. Nf3 {[%clk
0:02:49.1]} 5... Nxe4 {[%clk 0:02:57]} 6. Be2 {[%clk 0:02:38.1]} 6... Bg4 {[%clk
0:02:51.6]} 7. O-O {[%clk 0:02:36.3]} 7... Nf6 {[%clk 0:02:46.9]} 8. Re1 {[%clk
0:02:35]} 8... Be6 {[%clk 0:02:45.8]} 9. c4 {[%clk 0:02:28.7]} 9... Nc6 {[%clk
0:02:38.1]} 10. d5 {[%clk 0:02:27.3]} 10... Ne5 {[%clk 0:02:28.4]} 11. dxe6
{[%clk 0:02:25.3]} 11... Qxe6 {[%clk 0:02:27.6]} 12. c5 {[%clk 0:02:09.4]} 12...
Be7 {[%clk 0:02:21.4]} 13. cxd6 {[%clk 0:02:04.2]} 13... Bxd6 {[%clk 0:02:18.5]}
14. Nxe5 {[%clk 0:01:57.9]} 14... O-O {[%clk 0:02:11.9]} 15. Nf3 {[%clk
0:01:54.3]} 15... Qd7 {[%clk 0:02:04.4]} 16. Nc3 {[%clk 0:01:52.4]} 16... c6
{[%clk 0:01:59.6]} 17. Bg5 {[%clk 0:01:50.9]} 17... Rad8 {[%clk 0:01:53.7]} 18.
Bxf6 {[%clk 0:01:49.6]} 18... gxf6 {[%clk 0:01:53.1]} 19. Qc1 {[%clk 0:01:46.9]}
19... Qf5 {[%clk 0:01:44]} 20. Qh6 {[%clk 0:01:42.4]} 20... Qg6 {[%clk
0:01:43.2]} 21. Qh3 {[%clk 0:01:39.7]} 21... Rfe8 {[%clk 0:01:39.6]} 22. Nh4
{[%clk 0:01:31.7]} 22... Qg5 {[%clk 0:01:31.3]} 23. Bd3 {[%clk 0:01:24.8]} 23...
Kf8 {[%clk 0:01:23.2]} 24. Nf5 {[%clk 0:01:19.4]} 24... Bf4 {[%clk 0:01:15.9]}
25. Qxh7 {[%clk 0:01:03.9]} 25... Qg8 {[%clk 0:01:06.2]} 26. Qh4 {[%clk
0:00:49.8]} 26... Bg5 {[%clk 0:01:04.3]} 27. Qb4+ {[%clk 0:00:49.2]} 27... Re7
{[%clk 0:01:00]} 28. Qxe7# {[%clk 0:00:48.1]} 1-0